[Event "January 9 Early 2024"]
[Site "https://www.chess.com"]
[Date "2024.01.11"]
[Round "5"]
[White "Lu, Shanglei"]
[Black "Nepomniachtchi, Ian"]
[Result "1-0"]
[Board "99"]
[TimeControl "180+1"]
[WhiteFideId "8603332"]
[BlackFideId "4168119"]
[WhiteElo "3023"]
[BlackElo "3120"]
[WhiteTeam "CHN"]
[BlackTeam "RUS"]
[WhiteClock "0:00:28"]
[BlackClock "0:00:20"]

1. e4 {[%clk 0:02:55]}  c5 {[%clk 0:02:59]} 2. Nf3 {[%clk 0:02:55]}  d6 {[%clk 0:02:59]} 3. d4 {[%clk 0:02:56]}  cxd4 {[%clk 0:03:00]} 4. Nxd4 {[%clk 0:02:57]}  Nf6 {[%clk 0:03:00]} 5. f3 {[%clk 0:02:57]}  e5 {[%clk 0:03:00]} 6. Nb3 {[%clk 0:02:58]}  a5 {[%clk 0:03:01]} 7. a4 {[%clk 0:02:57]}  Be7 {[%clk 0:03:00]} 8. Nc3 {[%clk 0:02:56]}  O-O {[%clk 0:03:00]} 9. Be3 {[%clk 0:02:56]}  Nc6 {[%clk 0:03:00]} 10. Qd2 {[%clk 0:02:34]}  Be6 {[%clk 0:03:00]} 11. O-O-O {[%clk 0:02:35]}  Nb4 {[%clk 0:02:59]} 12. Kb1 {[%clk 0:02:35]}  d5 {[%clk 0:02:56]} 13. exd5 {[%clk 0:02:36]}  Nfxd5 {[%clk 0:02:55]} 14. Bc4 {[%clk 0:02:30]}  Nxc3+ {[%clk 0:02:40]} 15. Qxc3 {[%clk 0:02:27]}  Qc8 {[%clk 0:02:41]} 16. Bb5 {[%clk 0:01:42]}  Bf5 {[%clk 0:02:38]} 17. Rd2 {[%clk 0:01:21]}  Qe6 {[%clk 0:02:33]} 18. Bd7 {[%clk 0:01:12]}  Qg6 {[%clk 0:02:12]} 19. Bxf5 {[%clk 0:01:11]}  Qxf5 {[%clk 0:02:13]} 20. Qc7 {[%clk 0:01:01]}  Rac8 {[%clk 0:01:35]} 21. Qxe7 {[%clk 0:01:01]}  Nxc2 {[%clk 0:01:35]} 22. Bc5 {[%clk 0:00:45]}  Rfe8 {[%clk 0:01:03]} 23. Qd7 {[%clk 0:00:44]}  Qg6 {[%clk 0:00:20]} 24. Rxc2 {[%clk 0:00:42]}  b6 {[%clk 0:00:20]} 25. Qg4 {[%clk 0:00:37]}  Qf6 {[%clk 0:00:20]} 26. Be7 {[%clk 0:00:28]} 1-0

[Event "January 9 Early 2024"]
[Site "https://www.chess.com"]
[Date "2024.01.11"]
[Round "5"]
[White "Zemlyanskii, Ivan"]
[Black "Kuzubov, Yuriy"]
[Result "0-1"]
[Board "100"]
[TimeControl "180+1"]
[WhiteFideId "24249971"]
[BlackFideId "14112906"]
[WhiteElo "2987"]
[BlackElo "2874"]
[WhiteTeam "RUS"]
[BlackTeam "UKR"]
[WhiteClock "0:00:01"]
[BlackClock "0:00:29"]

1. d4 {[%clk 0:03:00]}  Nf6 {[%clk 0:02:59]} 2. c4 {[%clk 0:03:00]}  e6 {[%clk 0:03:00]} 3. Bf4 {[%clk 0:03:00]}  b6 {[%clk 0:02:55]} 4. Nc3 {[%clk 0:03:00]}  Bb4 {[%clk 0:02:52]} 5. Qc2 {[%clk 0:02:59]}  Bb7 {[%clk 0:02:51]} 6. e3 {[%clk 0:03:00]}  O-O {[%clk 0:02:50]} 7. Ne2 {[%clk 0:03:00]}  d5 {[%clk 0:02:48]} 8. a3 {[%clk 0:02:48]}  Bd6 {[%clk 0:02:42]} 9. cxd5 {[%clk 0:02:41]}  exd5 {[%clk 0:02:26]} 10. Bxd6 {[%clk 0:02:31]}  Qxd6 {[%clk 0:02:26]} 11. Rc1 {[%clk 0:02:07]}  c5 {[%clk 0:02:15]} 12. dxc5 {[%clk 0:01:58]}  bxc5 {[%clk 0:02:15]} 13. Nb5 {[%clk 0:01:59]}  Qd7 {[%clk 0:02:10]} 14. Qxc5 {[%clk 0:01:46]}  Rc8 {[%clk 0:02:03]} 15. Qb4 {[%clk 0:01:35]}  Na6 {[%clk 0:01:53]} 16. Qa5 {[%clk 0:01:30]}  Nc5 {[%clk 0:01:49]} 17. Nf4 {[%clk 0:00:36]}  g5 {[%clk 0:01:35]} 18. Nd4 {[%clk 0:00:28]}  gxf4 {[%clk 0:01:23]} 19. Rxc5 {[%clk 0:00:28]}  fxe3 {[%clk 0:01:20]} 20. fxe3 {[%clk 0:00:23]}  Qe7 {[%clk 0:00:49]} 21. Rxc8+ {[%clk 0:00:11]}  Rxc8 {[%clk 0:00:50]} 22. Qd2 {[%clk 0:00:07]}  Ne4 {[%clk 0:00:49]} 23. Qd1 {[%clk 0:00:07]}  Qg5 {[%clk 0:00:32]} 24. Be2 {[%clk 0:00:03]}  Qxe3 {[%clk 0:00:30]} 25. Rf1 {[%clk 0:00:01]}  Rc1 {[%clk 0:00:29]} 0-1

[Event "January 9 Early 2024"]
[Site "https://www.chess.com"]
[Date "2024.01.11"]
[Round "5"]
[White "Matlakov, Maxim"]
[Black "Carow, Johannes"]
[Result "1-0"]
[Board "101"]
[TimeControl "180+1"]
[WhiteFideId "4168003"]
[BlackFideId "24692050"]
[WhiteElo "2939"]
[BlackElo "2709"]
[WhiteTeam "RUS"]
[BlackTeam "GER"]
[WhiteClock "0:00:47"]
[BlackClock "0:00:10"]

1. Nf3 {[%clk 0:03:00]}  c5 {[%clk 0:02:59]} 2. b3 {[%clk 0:02:59]}  d6 {[%clk 0:02:58]} 3. e3 {[%clk 0:02:58]}  e5 {[%clk 0:02:56]} 4. Bb5+ {[%clk 0:02:58]}  Nd7 {[%clk 0:02:46]} 5. Bb2 {[%clk 0:02:56]}  f5 {[%clk 0:02:41]} 6. d4 {[%clk 0:02:52]}  cxd4 {[%clk 0:02:24]} 7. exd4 {[%clk 0:02:53]}  e4 {[%clk 0:02:24]} 8. Nfd2 {[%clk 0:02:51]}  d5 {[%clk 0:02:03]} 9. c4 {[%clk 0:02:49]}  Nf6 {[%clk 0:02:02]} 10. Nc3 {[%clk 0:02:48]}  a6 {[%clk 0:01:43]} 11. Bxd7+ {[%clk 0:02:47]}  Qxd7 {[%clk 0:01:39]} 12. Qe2 {[%clk 0:02:41]}  Bb4 {[%clk 0:01:22]} 13. O-O {[%clk 0:02:35]}  O-O {[%clk 0:01:19]} 14. Rac1 {[%clk 0:02:34]}  b6 {[%clk 0:01:11]} 15. Na4 {[%clk 0:02:08]}  Rb8 {[%clk 0:01:11]} 16. c5 {[%clk 0:01:57]}  f4 {[%clk 0:00:39]} 17. Nxb6 {[%clk 0:01:14]}  f3 {[%clk 0:00:39]} 18. Nxf3 {[%clk 0:01:05]}  exf3 {[%clk 0:00:35]} 19. Qxf3 {[%clk 0:01:06]}  Qg4 {[%clk 0:00:33]} 20. Qxg4 {[%clk 0:01:02]}  Bxg4 {[%clk 0:00:33]} 21. f3 {[%clk 0:01:02]}  Bf5 {[%clk 0:00:30]} 22. Bc3 {[%clk 0:01:02]}  Bxc3 {[%clk 0:00:25]} 23. Rxc3 {[%clk 0:01:03]}  Rfe8 {[%clk 0:00:26]} 24. Kf2 {[%clk 0:01:03]}  Nd7 {[%clk 0:00:25]} 25. Nxd5 {[%clk 0:01:02]}  Be6 {[%clk 0:00:20]} 26. Nc7 {[%clk 0:01:00]}  Re7 {[%clk 0:00:20]} 27. Re1 {[%clk 0:00:59]}  Nf8 {[%clk 0:00:19]} 28. Nxa6 {[%clk 0:00:59]}  Ra8 {[%clk 0:00:19]} 29. Nb4 {[%clk 0:00:59]}  Rb7 {[%clk 0:00:19]} 30. d5 {[%clk 0:00:50]}  Rxb4 {[%clk 0:00:09]} 31. dxe6 {[%clk 0:00:50]}  Re8 {[%clk 0:00:10]} 32. c6 {[%clk 0:00:48]}  Ng6 {[%clk 0:00:09]} 33. c7 {[%clk 0:00:48]}  Rc8 {[%clk 0:00:10]} 34. Rd1 {[%clk 0:00:47]} 1-0

[Event "January 9 Early 2024"]
[Site "https://www.chess.com"]
[Date "2024.01.11"]
[Round "5"]
[White "Recuero Guerra, Javier"]
[Black "Martinez Pla, Xavier"]
[Result "0-1"]
[Board "103"]
[TimeControl "180+1"]
[WhiteFideId "2254085"]
[BlackFideId "32074271"]
[WhiteElo "2295"]
[BlackElo "2462"]
[WhiteTeam "ESP"]
[BlackTeam "ESP"]
[WhiteClock "0:00:09"]
[BlackClock "0:00:57"]

1. Nf3 {[%clk 0:02:47]}  Nf6 {[%clk 0:02:58]} 2. c4 {[%clk 0:02:47]}  c5 {[%clk 0:02:57]} 3. g3 {[%clk 0:02:37]}  b6 {[%clk 0:02:57]} 4. Bg2 {[%clk 0:02:37]}  Bb7 {[%clk 0:02:58]} 5. O-O {[%clk 0:02:37]}  e6 {[%clk 0:02:58]} 6. Nc3 {[%clk 0:02:35]}  Be7 {[%clk 0:02:56]} 7. d4 {[%clk 0:02:35]}  cxd4 {[%clk 0:02:57]} 8. Nxd4 {[%clk 0:02:35]}  Bxg2 {[%clk 0:02:55]} 9. Kxg2 {[%clk 0:02:35]}  d6 {[%clk 0:02:54]} 10. e4 {[%clk 0:02:31]}  O-O {[%clk 0:02:53]} 11. Qe2 {[%clk 0:02:30]}  a6 {[%clk 0:02:53]} 12. Rd1 {[%clk 0:02:18]}  Qc7 {[%clk 0:02:52]} 13. b3 {[%clk 0:02:17]}  Nbd7 {[%clk 0:02:51]} 14. Bb2 {[%clk 0:02:17]}  Rac8 {[%clk 0:02:52]} 15. Rac1 {[%clk 0:02:17]}  Qb7 {[%clk 0:02:52]} 16. f3 {[%clk 0:02:16]}  Rc7 {[%clk 0:02:51]} 17. Na4 {[%clk 0:02:06]}  Rfc8 {[%clk 0:02:48]} 18. Rc2 {[%clk 0:01:42]}  b5 {[%clk 0:02:37]} 19. cxb5 {[%clk 0:01:42]}  Rxc2 {[%clk 0:02:38]} 20. Nxc2 {[%clk 0:01:42]}  axb5 {[%clk 0:02:37]} 21. Nc3 {[%clk 0:01:40]}  b4 {[%clk 0:02:36]} 22. Na4 {[%clk 0:01:38]}  d5 {[%clk 0:02:34]} 23. e5 {[%clk 0:01:27]}  Ne8 {[%clk 0:02:34]} 24. Nd4 {[%clk 0:01:23]}  Nc5 {[%clk 0:02:30]} 25. Nxc5 {[%clk 0:01:12]}  Rxc5 {[%clk 0:02:24]} 26. f4 {[%clk 0:01:08]}  Nc7 {[%clk 0:02:15]} 27. f5 {[%clk 0:00:59]}  exf5 {[%clk 0:02:16]} 28. Nxf5 {[%clk 0:00:57]}  Bf8 {[%clk 0:02:16]} 29. e6 {[%clk 0:00:25]}  Nxe6 {[%clk 0:02:01]} 30. Qg4 {[%clk 0:00:23]}  Rc2+ {[%clk 0:01:51]} 31. Kh3 {[%clk 0:00:22]}  Rxb2 {[%clk 0:01:50]} 32. Rxd5 {[%clk 0:00:21]}  Nf4+ {[%clk 0:01:23]} 33. gxf4 {[%clk 0:00:15]}  Qxd5 {[%clk 0:01:24]} 34. Qg5 {[%clk 0:00:12]}  Qe6 {[%clk 0:01:12]} 35. Kg3 {[%clk 0:00:11]}  h6 {[%clk 0:01:04]} 36. Qg4 {[%clk 0:00:10]}  Rxa2 {[%clk 0:00:58]} 37. h4 {[%clk 0:00:09]}  Qe1+ {[%clk 0:00:57]} 0-1

[Event "January 9 Early 2024"]
[Site "https://www.chess.com"]
[Date "2024.01.11"]
[Round "5"]
[White "Aronian, Levon"]
[Black "Ter-Sahakyan, Samvel"]
[Result "1-0"]
[Board "104"]
[TimeControl "180+1"]
[WhiteFideId "13300474"]
[BlackFideId "13302531"]
[WhiteElo "3094"]
[BlackElo "2915"]
[WhiteTeam "USA"]
[BlackTeam "ARM"]
[WhiteClock "0:01:18"]
[BlackClock "0:00:14"]

1. e4 {[%clk 0:03:00]}  c5 {[%clk 0:02:59]} 2. Nf3 {[%clk 0:03:01]}  d6 {[%clk 0:03:00]} 3. c3 {[%clk 0:03:02]}  Nf6 {[%clk 0:03:00]} 4. Be2 {[%clk 0:03:02]}  g6 {[%clk 0:02:57]} 5. O-O {[%clk 0:03:02]}  Bg7 {[%clk 0:02:57]} 6. d3 {[%clk 0:03:03]}  O-O {[%clk 0:02:56]} 7. Be3 {[%clk 0:03:04]}  Nc6 {[%clk 0:02:57]} 8. Nbd2 {[%clk 0:03:04]}  e5 {[%clk 0:02:57]} 9. a3 {[%clk 0:03:05]}  Re8 {[%clk 0:02:44]} 10. b4 {[%clk 0:03:04]}  b6 {[%clk 0:02:39]} 11. b5 {[%clk 0:03:04]}  Nb8 {[%clk 0:02:35]} 12. c4 {[%clk 0:03:03]}  Ng4 {[%clk 0:02:11]} 13. Bg5 {[%clk 0:03:03]}  Bf6 {[%clk 0:02:08]} 14. Bxf6 {[%clk 0:03:02]}  Qxf6 {[%clk 0:02:07]} 15. h3 {[%clk 0:02:58]}  Nh6 {[%clk 0:02:06]} 16. Nb1 {[%clk 0:02:56]}  Be6 {[%clk 0:01:54]} 17. Nc3 {[%clk 0:02:56]}  Nd7 {[%clk 0:01:54]} 18. Nd5 {[%clk 0:02:56]}  Bxd5 {[%clk 0:01:54]} 19. cxd5 {[%clk 0:02:57]}  Qe7 {[%clk 0:01:40]} 20. Qc1 {[%clk 0:02:50]}  Kg7 {[%clk 0:01:39]} 21. a4 {[%clk 0:02:49]}  f5 {[%clk 0:01:36]} 22. a5 {[%clk 0:02:45]}  Nf7 {[%clk 0:01:31]} 23. Ra4 {[%clk 0:02:38]}  a6 {[%clk 0:01:24]} 24. Qb2 {[%clk 0:02:25]}  axb5 {[%clk 0:01:20]} 25. Qxb5 {[%clk 0:02:25]}  bxa5 {[%clk 0:01:17]} 26. Rxa5 {[%clk 0:02:25]}  Reb8 {[%clk 0:01:17]} 27. Qa4 {[%clk 0:02:25]}  Rxa5 {[%clk 0:01:17]} 28. Qxa5 {[%clk 0:02:25]}  Nf6 {[%clk 0:01:16]} 29. Nd2 {[%clk 0:02:21]}  Ng5 {[%clk 0:01:09]} 30. h4 {[%clk 0:02:14]}  Nf7 {[%clk 0:01:07]} 31. Ra1 {[%clk 0:02:13]}  h5 {[%clk 0:01:05]} 32. Qc3 {[%clk 0:02:08]}  Ng4 {[%clk 0:00:53]} 33. g3 {[%clk 0:02:06]}  f4 {[%clk 0:00:46]} 34. Nc4 {[%clk 0:02:01]}  fxg3 {[%clk 0:00:44]} 35. fxg3 {[%clk 0:02:01]}  Nfh6 {[%clk 0:00:41]} 36. Rf1 {[%clk 0:01:56]}  Rf8 {[%clk 0:00:39]} 37. Qc1 {[%clk 0:01:48]}  Rxf1+ {[%clk 0:00:37]} 38. Qxf1 {[%clk 0:01:49]}  Qd8 {[%clk 0:00:28]} 39. Qe1 {[%clk 0:01:42]}  Nf6 {[%clk 0:00:28]} 40. Qb1 {[%clk 0:01:38]}  Qc7 {[%clk 0:00:26]} 41. Qb5 {[%clk 0:01:37]}  Nf7 {[%clk 0:00:26]} 42. Kf2 {[%clk 0:01:33]}  Qe7 {[%clk 0:00:26]} 43. Ke1 {[%clk 0:01:33]}  g5 {[%clk 0:00:26]} 44. hxg5 {[%clk 0:01:32]}  Nxg5 {[%clk 0:00:25]} 45. Qb6 {[%clk 0:01:31]}  Nf7 {[%clk 0:00:25]} 46. Kd1 {[%clk 0:01:32]}  Ng4 {[%clk 0:00:22]} 47. Bxg4 {[%clk 0:01:30]}  hxg4 {[%clk 0:00:22]} 48. Ne3 {[%clk 0:01:31]}  Qf6 {[%clk 0:00:18]} 49. Nf5+ {[%clk 0:01:28]}  Kg6 {[%clk 0:00:18]} 50. Qb8 {[%clk 0:01:27]}  Kh7 {[%clk 0:00:18]} 51. Qe8 {[%clk 0:01:23]}  Qg6 {[%clk 0:00:15]} 52. Qe7 {[%clk 0:01:18]}  Kg8 {[%clk 0:00:14]} 53. Kc2 {[%clk 0:01:18]}  Kh7 {[%clk 0:00:14]} 54. Kb3 {[%clk 0:01:18]} 1-0

[Event "January 9 Early 2024"]
[Site "https://www.chess.com"]
[Date "2024.01.11"]
[Round "5"]
[White "Cruz, William Ferreira Da"]
[Black "Alinasab, Mobina"]
[Result "1-0"]
[Board "105"]
[TimeControl "180+1"]
[WhiteFideId "2118050"]
[BlackFideId "12528897"]
[WhiteElo "2336"]
[BlackElo "2523"]
[WhiteTeam "BRA"]
[BlackTeam "IRI"]
[WhiteClock "0:00:09"]
[BlackClock "0:00:54"]

1. d4 {[%clk 0:03:00]}  Nf6 {[%clk 0:02:58]} 2. c4 {[%clk 0:03:00]}  e6 {[%clk 0:02:57]} 3. Nc3 {[%clk 0:03:00]}  Bb4 {[%clk 0:02:58]} 4. Nf3 {[%clk 0:03:00]}  b6 {[%clk 0:02:55]} 5. Bg5 {[%clk 0:02:57]}  Bb7 {[%clk 0:02:54]} 6. Nd2 {[%clk 0:02:56]}  h6 {[%clk 0:02:52]} 7. Bh4 {[%clk 0:02:56]}  Bxc3 {[%clk 0:02:50]} 8. bxc3 {[%clk 0:02:55]}  d6 {[%clk 0:02:50]} 9. f3 {[%clk 0:02:50]}  Nbd7 {[%clk 0:02:48]} 10. Qc2 {[%clk 0:02:47]}  e5 {[%clk 0:02:48]} 11. e4 {[%clk 0:02:42]}  Qe7 {[%clk 0:02:47]} 12. O-O-O {[%clk 0:02:33]}  O-O {[%clk 0:02:39]} 13. g4 {[%clk 0:02:26]}  a6 {[%clk 0:02:13]} 14. Bf2 {[%clk 0:02:06]}  b5 {[%clk 0:02:09]} 15. h4 {[%clk 0:02:01]}  Nh7 {[%clk 0:02:03]} 16. g5 {[%clk 0:01:23]}  hxg5 {[%clk 0:02:01]} 17. hxg5 {[%clk 0:01:23]}  Nxg5 {[%clk 0:02:00]} 18. Bh4 {[%clk 0:01:20]}  f6 {[%clk 0:01:57]} 19. Bxg5 {[%clk 0:01:15]}  fxg5 {[%clk 0:01:57]} 20. Bh3 {[%clk 0:01:10]}  Nb6 {[%clk 0:01:52]} 21. d5 {[%clk 0:01:02]}  Bc8 {[%clk 0:01:50]} 22. Bxc8 {[%clk 0:00:46]}  Raxc8 {[%clk 0:01:51]} 23. cxb5 {[%clk 0:00:45]}  axb5 {[%clk 0:01:51]} 24. Nf1 {[%clk 0:00:38]}  Rxf3 {[%clk 0:01:41]} 25. Qh2 {[%clk 0:00:33]}  Qf6 {[%clk 0:01:31]} 26. Nd2 {[%clk 0:00:29]}  Rxc3+ {[%clk 0:01:29]} 27. Kb2 {[%clk 0:00:28]}  Na4+ {[%clk 0:01:21]} 28. Ka1 {[%clk 0:00:28]}  Qh6 {[%clk 0:01:18]} 29. Qg2 {[%clk 0:00:26]}  Qg6 {[%clk 0:01:17]} 30. Qh2 {[%clk 0:00:20]}  Kf7 {[%clk 0:01:10]} 31. Rdf1+ {[%clk 0:00:19]}  Ke7 {[%clk 0:01:10]} 32. Qg2 {[%clk 0:00:17]}  Rf8 {[%clk 0:01:04]} 33. Rxf8 {[%clk 0:00:16]}  Kxf8 {[%clk 0:01:05]} 34. Rh8+ {[%clk 0:00:16]}  Ke7 {[%clk 0:01:05]} 35. Qg4 {[%clk 0:00:14]}  Qf6 {[%clk 0:00:55]} 36. Qc8 {[%clk 0:00:11]}  Qf1+ {[%clk 0:00:53]} 37. Nb1 {[%clk 0:00:11]}  Rc1 {[%clk 0:00:54]} 38. Qe8+ {[%clk 0:00:09]} 1-0

[Event "January 9 Early 2024"]
[Site "https://www.chess.com"]
[Date "2024.01.11"]
[Round "5"]
[White "Rasulov, Vugar"]
[Black "Kvaloy, Aksel Bu"]
[Result "1-0"]
[Board "107"]
[TimeControl "180+1"]
[WhiteFideId "13402390"]
[BlackFideId "1528815"]
[WhiteElo "2992"]
[BlackElo "2742"]
[WhiteTeam "AZE"]
[BlackTeam "NOR"]
[WhiteClock "0:00:47"]
[BlackClock "0:00:56"]

1. e4 {[%clk 0:03:00]}  e5 {[%clk 0:02:59]} 2. Nf3 {[%clk 0:03:01]}  Nf6 {[%clk 0:02:58]} 3. d3 {[%clk 0:02:57]}  Nc6 {[%clk 0:02:55]} 4. g3 {[%clk 0:02:58]}  d5 {[%clk 0:02:55]} 5. exd5 {[%clk 0:02:59]}  Nxd5 {[%clk 0:02:55]} 6. Bg2 {[%clk 0:02:59]}  Be7 {[%clk 0:02:52]} 7. O-O {[%clk 0:02:59]}  Be6 {[%clk 0:02:51]} 8. Re1 {[%clk 0:02:59]}  f6 {[%clk 0:02:51]} 9. d4 {[%clk 0:02:56]}  Qd6 {[%clk 0:02:31]} 10. c4 {[%clk 0:02:46]}  Ndb4 {[%clk 0:02:21]} 11. a3 {[%clk 0:02:46]}  Na6 {[%clk 0:02:02]} 12. d5 {[%clk 0:02:46]}  O-O-O {[%clk 0:02:01]} 13. Nc3 {[%clk 0:02:34]}  Qc5 {[%clk 0:01:56]} 14. Qe2 {[%clk 0:02:33]}  Bf7 {[%clk 0:01:44]} 15. dxc6 {[%clk 0:02:31]}  Bxc4 {[%clk 0:01:45]} 16. cxb7+ {[%clk 0:02:27]}  Kb8 {[%clk 0:01:44]} 17. Qe3 {[%clk 0:02:27]}  Qxe3 {[%clk 0:01:44]} 18. Bxe3 {[%clk 0:02:27]}  Nc5 {[%clk 0:01:45]} 19. Bxc5 {[%clk 0:02:10]}  Bxc5 {[%clk 0:01:45]} 20. Rac1 {[%clk 0:01:59]}  Bb6 {[%clk 0:01:42]} 21. Na4 {[%clk 0:01:58]}  Bd5 {[%clk 0:01:37]} 22. Nxb6 {[%clk 0:01:57]}  axb6 {[%clk 0:01:38]} 23. Nh4 {[%clk 0:01:56]}  Bxg2 {[%clk 0:01:34]} 24. Kxg2 {[%clk 0:01:57]}  Rd2 {[%clk 0:01:33]} 25. b4 {[%clk 0:01:50]}  Ra2 {[%clk 0:01:30]} 26. Rc3 {[%clk 0:01:49]}  Rd8 {[%clk 0:01:29]} 27. Nf5 {[%clk 0:01:45]}  Rd7 {[%clk 0:01:29]} 28. g4 {[%clk 0:01:26]}  Kxb7 {[%clk 0:01:27]} 29. h3 {[%clk 0:01:23]}  Ka6 {[%clk 0:01:23]} 30. Ng3 {[%clk 0:01:17]}  Rdd2 {[%clk 0:01:12]} 31. Ne4 {[%clk 0:01:16]}  Rdc2 {[%clk 0:01:12]} 32. Rc1 {[%clk 0:01:12]}  Rxc1 {[%clk 0:01:08]} 33. Rxc1 {[%clk 0:01:13]}  Kb7 {[%clk 0:01:08]} 34. Nc3 {[%clk 0:01:10]}  Rxa3 {[%clk 0:01:06]} 35. Nb5 {[%clk 0:01:11]}  Rb3 {[%clk 0:01:05]} 36. Rxc7+ {[%clk 0:01:10]}  Ka6 {[%clk 0:01:05]} 37. Nd6 {[%clk 0:01:09]}  Rxb4 {[%clk 0:01:05]} 38. Rxg7 {[%clk 0:01:09]}  Rd4 {[%clk 0:01:05]} 39. Nf5 {[%clk 0:01:08]}  Rd3 {[%clk 0:01:05]} 40. Rf7 {[%clk 0:01:06]}  b5 {[%clk 0:01:04]} 41. Rxf6+ {[%clk 0:01:07]}  Ka5 {[%clk 0:01:04]} 42. Ne3 {[%clk 0:01:04]}  b4 {[%clk 0:01:04]} 43. Nc4+ {[%clk 0:00:54]}  Kb5 {[%clk 0:01:04]} 44. Nxe5 {[%clk 0:00:54]}  Rc3 {[%clk 0:01:01]} 45. Rf8 {[%clk 0:00:53]}  b3 {[%clk 0:01:01]} 46. Rb8+ {[%clk 0:00:53]}  Kc5 {[%clk 0:01:00]} 47. Nf3 {[%clk 0:00:50]}  Kc4 {[%clk 0:01:00]} 48. Nd2+ {[%clk 0:00:50]}  Kd3 {[%clk 0:01:00]} 49. Nxb3 {[%clk 0:00:51]}  Ke2 {[%clk 0:01:01]} 50. Nd4+ {[%clk 0:00:51]}  Kd1 {[%clk 0:01:01]} 51. Nf3 {[%clk 0:00:50]}  h5 {[%clk 0:01:00]} 52. gxh5 {[%clk 0:00:50]}  Ke2 {[%clk 0:01:00]} 53. Re8+ {[%clk 0:00:49]}  Kd1 {[%clk 0:01:00]} 54. h6 {[%clk 0:00:49]}  Rc6 {[%clk 0:00:57]} 55. Re1+ {[%clk 0:00:47]}  Kc2 {[%clk 0:00:56]} 56. Nd4+ {[%clk 0:00:48]}  Kd2 {[%clk 0:00:55]} 57. Nxc6 {[%clk 0:00:47]}  Kxe1 {[%clk 0:00:56]} 1-0

[Event "January 9 Early 2024"]
[Site "https://www.chess.com"]
[Date "2024.01.11"]
[Round "5"]
[White "Radzhabov, Rodion"]
[Black "Rustemov, Alexander"]
[Result "0-1"]
[Board "108"]
[TimeControl "180+1"]
[WhiteFideId "884715"]
[BlackFideId "4119002"]
[WhiteElo "2584"]
[BlackElo "2811"]
[WhiteTeam "RUS"]
[BlackTeam "RUS"]
[WhiteClock "0:00:02"]
[BlackClock "0:00:50"]

1. e4 {[%clk 0:03:00]}  e6 {[%clk 0:03:00]} 2. Nc3 {[%clk 0:03:00]}  d5 {[%clk 0:03:00]} 3. Qe2 {[%clk 0:03:00]}  d4 {[%clk 0:02:59]} 4. Nd1 {[%clk 0:02:58]}  e5 {[%clk 0:02:58]} 5. g3 {[%clk 0:02:58]}  c5 {[%clk 0:02:58]} 6. d3 {[%clk 0:02:58]}  Nc6 {[%clk 0:02:58]} 7. f4 {[%clk 0:02:58]}  Bd6 {[%clk 0:02:52]} 8. Nf3 {[%clk 0:02:58]}  Nge7 {[%clk 0:02:51]} 9. Nf2 {[%clk 0:02:57]}  f6 {[%clk 0:02:50]} 10. Bg2 {[%clk 0:02:56]}  Be6 {[%clk 0:02:50]} 11. O-O {[%clk 0:02:55]}  Qd7 {[%clk 0:02:50]} 12. c4 {[%clk 0:02:53]}  dxc3 {[%clk 0:02:46]} 13. bxc3 {[%clk 0:02:52]}  b5 {[%clk 0:02:36]} 14. Be3 {[%clk 0:02:37]}  b4 {[%clk 0:02:21]} 15. cxb4 {[%clk 0:02:24]}  Nxb4 {[%clk 0:02:12]} 16. fxe5 {[%clk 0:02:12]}  fxe5 {[%clk 0:02:08]} 17. Ng5 {[%clk 0:01:58]}  O-O {[%clk 0:02:08]} 18. Qh5 {[%clk 0:01:44]}  h6 {[%clk 0:02:05]} 19. Nxe6 {[%clk 0:01:37]}  Qxe6 {[%clk 0:02:05]} 20. Bh3 {[%clk 0:01:31]}  Qf7 {[%clk 0:02:02]} 21. Qxf7+ {[%clk 0:01:19]}  Kxf7 {[%clk 0:02:03]} 22. Rfc1 {[%clk 0:00:55]}  Na6 {[%clk 0:01:47]} 23. Rab1 {[%clk 0:00:40]}  Rab8 {[%clk 0:01:47]} 24. Bd7 {[%clk 0:00:39]}  Rxb1 {[%clk 0:01:24]} 25. Rxb1 {[%clk 0:00:40]}  Rb8 {[%clk 0:01:24]} 26. Rf1 {[%clk 0:00:17]}  Kg6 {[%clk 0:01:18]} 27. Ng4 {[%clk 0:00:13]}  h5 {[%clk 0:01:10]} 28. Nf2 {[%clk 0:00:04]}  Nb4 {[%clk 0:01:09]} 29. h3 {[%clk 0:00:03]}  Nxa2 {[%clk 0:01:03]} 30. Ra1 {[%clk 0:00:01]}  Rb2 {[%clk 0:01:00]} 31. Be6 {[%clk 0:00:01]}  Nb4 {[%clk 0:00:50]} 32. Rxa7 {[%clk 0:00:02]}  Re2 {[%clk 0:00:50]} 0-1

[Event "January 9 Early 2024"]
[Site "https://www.chess.com"]
[Date "2024.01.11"]
[Round "5"]
[White "Leiva, Gianmarco"]
[Black "Valle Luis, Leo"]
[Result "1-0"]
[Board "109"]
[TimeControl "180+1"]
[WhiteFideId "3804399"]
[BlackFideId "54577187"]
[WhiteElo "2693"]
[BlackElo "2502"]
[WhiteTeam "PER"]
[BlackTeam "ESP"]
[WhiteClock "0:00:26"]
[BlackClock "0:00:03"]

1. d4 {[%clk 0:03:00]}  Nf6 {[%clk 0:02:58]} 2. Nf3 {[%clk 0:03:00]}  e6 {[%clk 0:02:55]} 3. Bf4 {[%clk 0:03:00]}  d5 {[%clk 0:02:51]} 4. e3 {[%clk 0:03:01]}  Bd6 {[%clk 0:02:51]} 5. Nbd2 {[%clk 0:02:56]}  O-O {[%clk 0:02:36]} 6. c3 {[%clk 0:02:53]}  c5 {[%clk 0:02:34]} 7. Ne5 {[%clk 0:02:49]}  Qc7 {[%clk 0:02:33]} 8. Bd3 {[%clk 0:02:44]}  Nbd7 {[%clk 0:02:32]} 9. Ndf3 {[%clk 0:02:37]}  b6 {[%clk 0:02:25]} 10. O-O {[%clk 0:02:33]}  Bb7 {[%clk 0:02:25]} 11. Qe2 {[%clk 0:02:12]}  Rad8 {[%clk 0:02:22]} 12. Rad1 {[%clk 0:02:10]}  Ne4 {[%clk 0:02:19]} 13. Nxd7 {[%clk 0:02:07]}  Rxd7 {[%clk 0:02:15]} 14. Bxd6 {[%clk 0:02:03]}  Nxd6 {[%clk 0:02:06]} 15. Ne5 {[%clk 0:01:54]}  Re7 {[%clk 0:02:06]} 16. f4 {[%clk 0:01:48]}  f6 {[%clk 0:01:32]} 17. Ng6 {[%clk 0:01:29]}  hxg6 {[%clk 0:01:06]} 18. Bxg6 {[%clk 0:01:30]}  Rd8 {[%clk 0:00:55]} 19. Qh5 {[%clk 0:01:29]}  Nf7 {[%clk 0:00:51]} 20. Rf3 {[%clk 0:01:28]}  Kf8 {[%clk 0:00:43]} 21. Rh3 {[%clk 0:01:22]}  Nh6 {[%clk 0:00:26]} 22. g4 {[%clk 0:00:41]}  cxd4 {[%clk 0:00:19]} 23. g5 {[%clk 0:00:41]}  Ng8 {[%clk 0:00:07]} 24. cxd4 {[%clk 0:00:39]}  e5 {[%clk 0:00:07]} 25. fxe5 {[%clk 0:00:34]}  Re6 {[%clk 0:00:04]} 26. Rf1 {[%clk 0:00:29]}  Ke7 {[%clk 0:00:03]} 27. Qh8 {[%clk 0:00:26]} 1-0